[Event "MČR juniorů a juniorek v rapid šachu 2023"]
[Site "Czech Republic"]
[Date "2023.09.23"]
[Round "5.3"]
[White "Dolensky, Filip"]
[Black "Hlavina, Matous"]
[Result "0-1"]
[TimeControl "20 min + 5 sec per move"]
[WhiteFideId "399000"]
[BlackFideId "386650"]
[WhiteElo "1942"]
[BlackElo "2005"]

1. e4 {[%clk 00:20:08]} {[%emt 00:00:01]} d5 {[%clk 00:19:16]} {[%emt
00:00:51]} 2. exd5 {[%clk 00:20:03]} {[%emt 00:00:13]} Nf6 {[%clk 00:19:12]}
{[%emt 00:00:09]} 3. Nf3 {[%clk 00:20:07]} Qxd5 {[%clk 00:19:02]} {[%emt
00:00:15]} 4. Nc3 {[%clk 00:20:02]} {[%emt 00:00:09]} Qd6 {[%clk 00:18:45]}
{[%emt 00:00:22]} 5. d4 {[%clk 00:19:39]} {[%emt 00:00:29]} c6 {[%clk
00:18:44]} {[%emt 00:00:06]} 6. Be2 {[%clk 00:19:37]} {[%emt 00:00:08]} g6
{[%clk 00:18:35]} {[%emt 00:00:13]} 7. h3 {[%clk 00:19:36]} {[%emt 00:00:06]}
Bg7 {[%clk 00:18:37]} {[%emt 00:00:03]} 8. Be3 {[%clk 00:19:39]} {[%emt
00:00:02]} Bf5 {[%clk 00:17:57]} {[%emt 00:00:45]} 9. Ne5 {[%clk 00:18:50]}
{[%emt 00:00:54]} Nbd7 {[%clk 00:17:22]} {[%emt 00:00:39]} 10. Nc4 {[%clk
00:16:06]} {[%emt 00:02:49]} Qc7 {[%clk 00:17:18]} {[%emt 00:00:09]} 11. Bf3
{[%clk 00:15:45]} {[%emt 00:00:27]} Rd8 {[%clk 00:16:38]} {[%emt 00:00:45]} 12.
O-O {[%clk 00:15:04]} {[%emt 00:00:45]} O-O {[%clk 00:16:30]} {[%emt 00:00:13]}
13. g4 {[%clk 00:13:08]} {[%emt 00:02:01]} Be6 {[%clk 00:16:17]} {[%emt
00:00:18]} 14. Nd2 {[%clk 00:13:09]} {[%emt 00:00:03]} Nb6 {[%clk 00:15:59]}
{[%emt 00:00:24]} 15. Qe2 {[%clk 00:12:55]} {[%emt 00:00:18]} Nfd5 {[%clk
00:15:36]} {[%emt 00:00:28]} 16. Nxd5 {[%clk 00:12:58]} {[%emt 00:00:03]} Nxd5
{[%clk 00:15:36]} {[%emt 00:00:05]} 17. c3 {[%clk 00:12:29]} {[%emt 00:00:33]}
Nf4 {[%clk 00:15:06]} {[%emt 00:00:35]} 18. Bxf4 {[%clk 00:12:26]} {[%emt
00:00:08]} Qxf4 {[%clk 00:15:10]} {[%emt 00:00:02]} 19. Qe3 {[%clk 00:12:17]}
{[%emt 00:00:14]} Qc7 {[%clk 00:14:24]} {[%emt 00:00:51]} 20. Rfe1 {[%clk
00:12:06]} {[%emt 00:00:16]} Rfe8 {[%clk 00:14:19]} {[%emt 00:00:10]} 21. Rad1
{[%clk 00:10:43]} {[%emt 00:01:27]} Qa5 {[%clk 00:13:30]} {[%emt 00:00:54]} 22.
Ne4 {[%clk 00:09:16]} {[%emt 00:01:32]} Bc8 {[%clk 00:12:43]} {[%emt 00:00:52]}
23. Nd2 {[%clk 00:08:03]} {[%emt 00:01:20]} Qc7 {[%clk 00:09:17]} {[%emt
00:03:31]} 24. Nc4 {[%clk 00:07:55]} {[%emt 00:00:13]} Be6 {[%clk 00:08:47]}
{[%emt 00:00:35]} 25. Ne5 {[%clk 00:07:03]} {[%emt 00:00:56]} Bd5 {[%clk
00:08:13]} {[%emt 00:00:40]} 26. Bxd5 {[%clk 00:06:45]} {[%emt 00:00:22]} Rxd5
{[%clk 00:07:31]} {[%emt 00:00:47]} 27. f4 {[%clk 00:04:49]} {[%emt 00:02:01]}
Red8 {[%clk 00:06:53]} {[%emt 00:00:43]} 28. Nf3 {[%clk 00:03:29]} {[%emt
00:01:26]} e6 {[%clk 00:06:39]} {[%emt 00:00:19]} 29. c4 {[%clk 00:01:10]} R5d6
{[%clk 00:06:05]} {[%emt 00:03:03]} 30. b4 {[%clk 00:00:52]} b6 {[%emt
00:00:39]} 31. Rd2 c5 32. bxc5 bxc5 {[%clk 00:05:53]} 33. d5 {[%clk 00:00:41]}
exd5 {[%clk 00:05:14]} {[%emt 00:01:14]} 34. Rxd5 {[%clk 00:00:40]} {[%emt
00:00:12]} Rxd5 {[%clk 00:04:43]} {[%emt 00:00:37]} 35. cxd5 {[%clk 00:00:44]}
Rxd5 {[%clk 00:04:14]} {[%emt 00:00:34]} 36. Qe8+ {[%clk 00:00:24]} {[%emt
00:00:24]} Bf8 {[%clk 00:04:18]} {[%emt 00:00:01]} 37. Ne5 {[%clk 00:00:24]}
{[%emt 00:00:06]} Rd8 {[%clk 00:04:04]} {[%emt 00:00:19]} 38. Qa4 {[%clk
00:00:23]} {[%emt 00:00:05]} Bd6 {[%clk 00:03:47]} {[%emt 00:00:22]} 39. Qc4
{[%clk 00:00:10]} {[%emt 00:00:18]} Re8 {[%clk 00:02:52]} {[%emt 00:01:01]} 40.
Qd5 {[%clk 00:00:14]} c4 {[%clk 00:02:21]} {[%emt 00:00:36]} 41. Rc1 {[%clk
00:00:11]} {[%emt 00:00:07]} Bxe5 {[%clk 00:02:13]} {[%emt 00:00:14]} 42. fxe5
{[%clk 00:00:12]} {[%emt 00:00:03]} Rxe5 {[%clk 00:02:00]} {[%emt 00:00:18]} 43.
Rxc4 {[%clk 00:00:07]} {[%emt 00:00:11]} Rxd5 {[%clk 00:01:49]} {[%emt
00:00:16]} 44. Rxc7 {[%clk 00:00:11]} Rd1+ {[%clk 00:01:53]} 45. Kf2 {[%clk
00:00:14]} {[%emt 00:00:01]} Rd2+ {[%clk 00:01:57]} 46. Ke3 {[%clk 00:00:18]}
Rxa2 {[%clk 00:02:00]} {[%emt 00:00:01]} 47. h4 {[%clk 00:00:16]} {[%emt
00:00:08]} Kg7 {[%clk 00:02:04]} 48. Kf4 {[%clk 00:00:18]} {[%emt 00:00:02]}
Ra4+ {[%clk 00:02:01]} {[%emt 00:00:08]} 49. Kf3 {[%clk 00:00:19]} {[%emt
00:00:04]} a5 {[%clk 00:02:04]} {[%emt 00:00:02]} 50. Ra7 {[%clk 00:00:23]} Ra1
{[%clk 00:02:04]} {[%emt 00:00:05]} 51. Ra6 {[%clk 00:00:09]} {[%emt 00:00:20]}
a4 {[%clk 00:02:06]} {[%emt 00:00:03]} 52. Kg3 {[%clk 00:00:10]} {[%emt
00:00:03]} a3 {[%clk 00:01:55]} {[%emt 00:00:17]} 53. Kh2 {[%clk 00:00:09]}
{[%emt 00:00:04]} f5 {[%clk 00:01:35]} {[%emt 00:00:26]} 54. gxf5 {[%clk
00:00:07]} {[%emt 00:00:08]} gxf5 {[%clk 00:01:38]} {[%emt 00:00:02]} 55. Kg2
{[%clk 00:00:11]} f4 {[%clk 00:01:40]} {[%emt 00:00:03]} 56. Kf2 {[%clk
00:00:07]} {[%emt 00:00:09]} a2 {[%clk 00:01:42]} {[%emt 00:00:03]} 57. Kg2
{[%clk 00:00:07]} {[%emt 00:00:05]} f3+ {[%clk 00:01:45]} {[%emt 00:00:02]} 58.
Kf2 {[%clk 00:00:06]} {[%emt 00:00:07]} Rh1 {[%clk 00:01:44]} {[%emt 00:00:06]}
59. Ra7+ {[%clk 00:00:09]} {[%emt 00:00:01]} Kg6 {[%clk 00:01:41]} {[%emt
00:00:07]} 60. h5+ {[%clk 00:00:13]} {[%emt 00:00:02]} Kf5 {[%clk 00:01:34]}
{[%emt 00:00:13]} 61. Ra5+ {[%clk 00:00:12]} {[%emt 00:00:06]} Ke4 {[%clk
00:01:36]} {[%emt 00:00:03]} 62. Ra4+ {[%clk 00:00:14]} {[%emt 00:00:03]} Kd5
{[%clk 00:01:37]} {[%emt 00:00:03]} 63. Ra5+ {[%clk 00:00:11]} {[%emt
00:00:08]} Kc4 {[%clk 00:01:41]} {[%emt 00:00:02]} 64. Ra4+ {[%clk 00:00:08]}
{[%emt 00:00:08]} Kb3 {[%clk 00:01:44]} {[%emt 00:00:03]} 65. Ra7 {[%clk
00:00:11]} {[%emt 00:00:02]} a1=Q 66. Rxa1 {[%clk 00:00:15]} Rxa1 {[%clk
00:01:47]} {[%emt 00:00:02]} 67. Kxf3 {[%clk 00:00:18]} {[%emt 00:00:01]} Ra4
{[%clk 00:01:50]} {[%emt 00:00:02]} 0-1

[Event "MČR juniorů a juniorek v rapid šachu 2023"]
[Site "Czech Republic"]
[Date "2023.09.23"]
[Round "5.4"]
[White "Hurtik, Matej"]
[Black "Martinkovic, Adam"]
[Result "1-0"]
[TimeControl "20 min + 5 sec per move"]
[WhiteFideId "397997"]
[BlackFideId "23728019"]
[WhiteElo "1930"]
[BlackElo "1807"]

1. e4 {[%clk 00:20:08]} {[%emt 00:00:02]} c6 {[%clk 00:20:09]} {[%emt
00:00:02]} 2. d4 {[%clk 00:20:08]} {[%emt 00:00:05]} d5 {[%clk 00:20:13]}
{[%emt 00:00:01]} 3. e5 {[%clk 00:20:12]} {[%emt 00:00:02]} Bf5 {[%clk
00:20:16]} 4. Nc3 {[%clk 00:20:15]} {[%emt 00:00:01]} e6 {[%clk 00:20:18]}
{[%emt 00:00:04]} 5. g4 {[%clk 00:20:19]} Bg6 {[%clk 00:20:14]} {[%emt
00:00:09]} 6. Nge2 {[%clk 00:20:22]} {[%emt 00:00:02]} Bb4 {[%clk 00:19:36]}
{[%emt 00:00:43]} 7. Be3 {[%clk 00:19:17]} {[%emt 00:01:09]} Be4 {[%clk
00:17:34]} {[%emt 00:02:08]} 8. Rg1 {[%clk 00:19:07]} {[%emt 00:00:14]} Bf3
{[%clk 00:16:23]} {[%emt 00:01:16]} 9. Qd2 {[%clk 00:18:34]} {[%emt 00:00:35]}
Bxe2 {[%clk 00:15:04]} {[%emt 00:01:27]} 10. Bxe2 {[%clk 00:18:34]} {[%emt
00:00:05]} Nd7 {[%clk 00:14:17]} {[%emt 00:00:51]} 11. a3 {[%clk 00:16:42]}
{[%emt 00:01:58]} Qa5 {[%clk 00:12:28]} {[%emt 00:01:52]} 12. f4 {[%clk
00:16:15]} {[%emt 00:00:34]} Bxc3 {[%clk 00:11:59]} {[%emt 00:00:34]} 13. Qxc3
{[%clk 00:14:32]} {[%emt 00:01:47]} Qxc3+ {[%clk 00:11:30]} {[%emt 00:00:34]}
14. bxc3 {[%clk 00:14:36]} {[%emt 00:00:02]} Ne7 {[%clk 00:11:21]} {[%emt
00:00:14]} 15. Kf2 {[%clk 00:13:49]} {[%emt 00:00:53]} g6 {[%clk 00:10:45]}
{[%emt 00:00:40]} 16. a4 {[%clk 00:13:00]} {[%emt 00:00:54]} Kd8 {[%clk
00:10:34]} {[%emt 00:00:16]} 17. Bc1 {[%clk 00:12:26]} {[%emt 00:00:39]} c5
{[%clk 00:08:37]} {[%emt 00:02:03]} 18. Ba3 {[%clk 00:09:10]} {[%emt 00:03:20]}
Rc8 {[%clk 00:07:28]} {[%emt 00:01:13]} 19. Rgb1 {[%clk 00:08:45]} {[%emt
00:00:30]} b6 {[%clk 00:06:54]} {[%emt 00:00:39]} 20. Ba6 {[%clk 00:07:31]}
{[%emt 00:01:19]} Rc7 {[%clk 00:06:42]} {[%emt 00:00:17]} 21. Rb2 {[%clk
00:06:28]} {[%emt 00:01:07]} Nb8 {[%clk 00:05:50]} {[%emt 00:00:57]} 22. Be2
{[%clk 00:05:40]} {[%emt 00:00:54]} cxd4 {[%clk 00:04:13]} {[%emt 00:01:43]} 23.
cxd4 {[%clk 00:05:43]} {[%emt 00:00:02]} Nec6 {[%clk 00:03:57]} {[%emt
00:00:20]} 24. a5 {[%clk 00:04:37]} {[%emt 00:01:11]} Nxd4 {[%clk 00:01:58]}
{[%emt 00:02:04]} 25. axb6 {[%clk 00:04:40]} {[%emt 00:00:02]} axb6 {[%clk
00:01:44]} {[%emt 00:00:19]} 26. Bd6 {[%clk 00:04:42]} {[%emt 00:00:02]} Rb7
{[%clk 00:01:29]} {[%emt 00:00:20]} 27. Bd3 {[%clk 00:02:57]} {[%emt 00:01:51]}
Kd7 {[%clk 00:01:00]} {[%emt 00:00:35]} 28. Ra8 {[%clk 00:02:53]} {[%emt
00:00:08]} Rc8 {[%clk 00:00:32]} {[%emt 00:00:33]} 29. Ke3 {[%clk 00:02:30]}
{[%emt 00:00:28]} Ndc6 {[%clk 00:00:14]} {[%emt 00:00:23]} 30. Bb5 {[%clk
00:02:32]} {[%emt 00:00:04]} Kd8 {[%emt 00:00:14]} 1-0

[Event "MČR juniorů a juniorek v rapid šachu 2023"]
[Site "Czech Republic"]
[Date "2023.09.23"]
[Round "5.5"]
[White "Jun, Rudolf"]
[Black "Sulc, Jakub"]
[Result "0-1"]
[TimeControl "20 min + 5 sec per move"]
[WhiteFideId "376612"]
[BlackFideId "394050"]
[WhiteElo "2151"]
[BlackElo "1920"]

1. e4 {[%clk 00:20:07]} {[%emt 00:00:02]} e6 {[%clk 00:20:10]} {[%emt
00:00:01]} 2. d4 {[%clk 00:20:09]} {[%emt 00:00:03]} d5 {[%clk 00:20:13]}
{[%emt 00:00:02]} 3. Nd2 {[%clk 00:20:12]} Nf6 {[%clk 00:20:16]} {[%emt
00:00:02]} 4. Bd3 {[%clk 00:20:06]} {[%emt 00:00:12]} c5 {[%clk 00:20:16]}
{[%emt 00:00:05]} 5. dxc5 {[%clk 00:20:01]} {[%emt 00:00:10]} Bxc5 {[%clk
00:20:15]} {[%emt 00:00:06]} 6. exd5 {[%clk 00:20:01]} {[%emt 00:00:05]} Nxd5
{[%clk 00:20:14]} {[%emt 00:00:06]} 7. Nb3 {[%clk 00:19:32]} {[%emt 00:00:34]}
Bb6 {[%clk 00:19:59]} {[%emt 00:00:20]} 8. Nf3 {[%clk 00:19:33]} {[%emt
00:00:03]} Nc6 {[%clk 00:17:28]} {[%emt 00:02:37]} 9. c3 {[%clk 00:19:25]}
{[%emt 00:00:13]} h6 {[%clk 00:16:51]} {[%emt 00:00:42]} 10. O-O {[%clk
00:19:21]} {[%emt 00:00:08]} O-O {[%clk 00:16:51]} {[%emt 00:00:05]} 11. a3
{[%clk 00:16:29]} {[%emt 00:02:58]} e5 {[%clk 00:16:10]} {[%emt 00:00:46]} 12.
Qc2 {[%clk 00:15:26]} {[%emt 00:01:08]} f5 {[%clk 00:15:50]} {[%emt 00:00:25]}
13. Bc4 {[%clk 00:15:19]} {[%emt 00:00:12]} e4 {[%clk 00:15:01]} {[%emt
00:00:54]} 14. Rd1 {[%clk 00:14:37]} {[%emt 00:00:46]} Nce7 {[%clk 00:12:41]}
{[%emt 00:02:26]} 15. Nfd4 {[%clk 00:11:13]} {[%emt 00:03:29]} Qc7 {[%clk
00:11:44]} {[%emt 00:01:01]} 16. Qe2 {[%clk 00:10:32]} {[%emt 00:00:47]} Kh8
{[%clk 00:11:39]} {[%emt 00:00:10]} 17. Bxd5 {[%clk 00:04:48]} {[%emt
00:05:49]} Nxd5 {[%clk 00:11:43]} {[%emt 00:00:01]} 18. c4 {[%clk 00:04:21]}
{[%emt 00:00:32]} Nf4 {[%clk 00:10:22]} {[%emt 00:01:25]} 19. Bxf4 {[%clk
00:03:26]} {[%emt 00:01:01]} Qxf4 {[%clk 00:10:25]} {[%emt 00:00:02]} 20. c5
{[%clk 00:02:16]} {[%emt 00:01:14]} Bc7 {[%clk 00:10:24]} {[%emt 00:00:06]} 21.
g3 {[%clk 00:02:18]} {[%emt 00:00:03]} Qe5 {[%clk 00:10:13]} {[%emt 00:00:15]}
22. Nb5 {[%clk 00:01:51]} {[%emt 00:00:33]} Be6 {[%clk 00:09:24]} {[%emt
00:00:54]} 23. N3d4 {[%clk 00:01:00]} {[%emt 00:00:56]} Bd7 {[%clk 00:09:26]}
{[%emt 00:00:04]} 24. Nxc7 {[%clk 00:00:38]} {[%emt 00:00:27]} Qxc7 {[%clk
00:09:30]} {[%emt 00:00:02]} 25. b4 {[%clk 00:00:42]} Rae8 {[%clk 00:08:20]}
{[%emt 00:01:14]} 26. Nb5 {[%clk 00:00:14]} {[%emt 00:00:34]} Bxb5 {[%clk
00:08:04]} {[%emt 00:00:21]} 27. Qxb5 {[%clk 00:00:17]} f4 {[%clk 00:07:23]}
{[%emt 00:00:47]} 28. Qd7 {[%clk 00:00:07]} {[%emt 00:00:14]} Qe5 {[%clk
00:07:14]} {[%emt 00:00:14]} 29. Qd5 {[%clk 00:00:07]} {[%emt 00:00:06]} Qc3
{[%clk 00:04:52]} {[%emt 00:02:27]} 30. Qd2 {[%clk 00:00:06]} {[%emt 00:00:06]}
Qf3 {[%clk 00:04:52]} {[%emt 00:00:04]} 31. gxf4 {[%clk 00:00:09]} {[%emt
00:00:03]} Rxf4 {[%clk 00:04:49]} {[%emt 00:00:07]} 32. Qe3 {[%clk 00:00:09]}
{[%emt 00:00:05]} Qg4+ {[%clk 00:04:09]} {[%emt 00:00:44]} 33. Qg3 {[%clk
00:00:12]} {[%emt 00:00:03]} Qf5 {[%clk 00:04:11]} {[%emt 00:00:02]} 34. h3
{[%clk 00:00:14]} {[%emt 00:00:04]} Rf8 {[%clk 00:00:57]} {[%emt 00:03:19]} 35.
Rd2 {[%clk 00:00:18]} {[%emt 00:00:01]} Rf3 {[%clk 00:00:21]} {[%emt 00:00:41]}
36. Qg4 {[%clk 00:00:21]} {[%emt 00:00:02]} Qe5 {[%clk 00:00:25]} 37. Re1
{[%clk 00:00:19]} {[%emt 00:00:07]} e3 {[%clk 00:00:28]} {[%emt 00:00:02]} 0-1

[Event "MČR juniorů a juniorek v rapid šachu 2023"]
[Site "Czech Republic"]
[Date "2023.09.23"]
[Round "5.6"]
[White "Vilimek, Vit"]
[Black "Bezdek, Tomas"]
[Result "0-1"]
[TimeControl "20 min + 5 sec per move"]
[WhiteFideId "23718218"]
[BlackFideId "23733551"]
[WhiteElo "1898"]
[BlackElo "1933"]

1. e4 {[%clk 00:20:09]} e6 {[%clk 00:19:36]} {[%emt 00:00:35]} 2. Nf3 {[%clk
00:20:12]} {[%emt 00:00:02]} d5 {[%clk 00:19:40]} {[%emt 00:00:01]} 3. e5
{[%clk 00:20:16]} c5 {[%clk 00:19:41]} {[%emt 00:00:03]} 4. b4 {[%clk
00:20:21]} d4 {[%clk 00:19:45]} {[%emt 00:00:02]} 5. c3 {[%clk 00:20:25]} dxc3
{[%clk 00:18:05]} {[%emt 00:01:45]} 6. bxc5 {[%clk 00:20:30]} Bxc5 {[%clk
00:17:56]} {[%emt 00:00:14]} 7. Nxc3 {[%clk 00:20:33]} {[%emt 00:00:01]} Nc6
{[%clk 00:17:43]} {[%emt 00:00:17]} 8. Ne4 {[%clk 00:19:11]} {[%emt 00:01:27]}
Be7 {[%clk 00:13:03]} {[%emt 00:04:46]} 9. d4 {[%clk 00:19:11]} {[%emt
00:00:05]} Qd5 {[%clk 00:12:35]} {[%emt 00:00:32]} 10. Bd3 {[%clk 00:18:34]}
{[%emt 00:00:42]} Bd7 {[%clk 00:12:01]} {[%emt 00:00:40]} 11. Be3 {[%clk
00:16:41]} {[%emt 00:01:58]} Nh6 {[%clk 00:10:38]} {[%emt 00:01:28]} 12. O-O
{[%clk 00:16:07]} {[%emt 00:00:38]} Nf5 {[%clk 00:08:43]} {[%emt 00:02:00]} 13.
Nc3 {[%clk 00:15:37]} {[%emt 00:00:36]} Qa5 {[%clk 00:08:44]} {[%emt 00:00:05]}
14. Rc1 {[%clk 00:11:19]} {[%emt 00:04:22]} Nxe3 {[%clk 00:08:16]} {[%emt
00:00:33]} 15. fxe3 {[%clk 00:11:23]} {[%emt 00:00:01]} O-O {[%clk 00:07:19]}
{[%emt 00:01:03]} 16. Bb1 {[%clk 00:11:11]} {[%emt 00:00:16]} Rac8 {[%emt
00:01:02]} 17. Qd3 {[%clk 00:10:13]} {[%emt 00:01:01]} g6 {[%clk 00:06:24]}
{[%emt 00:00:05]} 18. Qe4 {[%clk 00:09:31]} {[%emt 00:00:48]} Nb4 {[%clk
00:04:52]} {[%emt 00:01:37]} 19. Qg4 {[%clk 00:08:49]} {[%emt 00:00:46]} Qa3
{[%clk 00:03:29]} {[%emt 00:01:28]} 20. d5 {[%clk 00:06:28]} {[%emt 00:02:26]}
Nxd5 {[%clk 00:00:55]} {[%emt 00:02:40]} 21. Nxd5 {[%clk 00:06:20]} {[%emt
00:00:13]} exd5 {[%clk 00:00:53]} {[%emt 00:00:07]} 22. Qxd7 {[%clk 00:06:14]}
{[%emt 00:00:10]} Qxe3+ {[%clk 00:00:55]} {[%emt 00:00:04]} 23. Kh1 {[%clk
00:06:03]} {[%emt 00:00:16]} Rxc1 {[%clk 00:00:59]} {[%emt 00:00:02]} 24. Bd3
{[%clk 00:05:24]} {[%emt 00:00:43]} Rxf1+ {[%clk 00:00:53]} {[%emt 00:00:11]}
25. Bxf1 {[%clk 00:05:27]} Qc1 {[%clk 00:00:56]} {[%emt 00:00:04]} 26. Nd2
{[%clk 00:05:19]} {[%emt 00:00:13]} Qxd2 {[%clk 00:00:54]} {[%emt 00:00:06]} 27.
Qxe7 {[%clk 00:05:21]} {[%emt 00:00:03]} Qf2 {[%clk 00:00:56]} {[%emt
00:00:03]} 28. h3 {[%clk 00:05:16]} {[%emt 00:00:09]} Qxf1+ {[%clk 00:00:59]}
{[%emt 00:00:03]} 29. Kh2 {[%clk 00:05:21]} Qf4+ {[%clk 00:00:59]} {[%emt
00:00:05]} 30. Kh1 {[%clk 00:05:25]} Qc1+ {[%clk 00:01:00]} {[%emt 00:00:04]}
31. Kh2 {[%clk 00:05:30]} Qc6 {[%clk 00:01:04]} {[%emt 00:00:02]} 32. Qg5
{[%clk 00:05:29]} {[%emt 00:00:07]} Qe6 {[%clk 00:01:04]} {[%emt 00:00:04]} 33.
h4 {[%clk 00:05:31]} {[%emt 00:00:03]} Re8 {[%clk 00:01:08]} 34. g3 {[%clk
00:05:35]} {[%emt 00:00:02]} Qxe5 {[%clk 00:01:10]} {[%emt 00:00:02]} 35. Qh6
{[%clk 00:05:38]} Qe3 {[%clk 00:01:11]} {[%emt 00:00:04]} 0-1

[Event "MČR juniorů a juniorek v rapid šachu 2023"]
[Site "Czech Republic"]
[Date "2023.09.23"]
[Round "5.7"]
[White "Slaby, Matej"]
[Black "Pressler, Tobias"]
[Result "0-1"]
[TimeControl "20 min + 5 sec per move"]
[WhiteFideId "23734876"]
[BlackFideId "23715359"]
[WhiteElo "1922"]
[BlackElo "1859"]

1. d4 {[%clk 00:20:08]} {[%emt 00:00:02]} d5 {[%clk 00:20:09]} {[%emt
00:00:02]} 2. Nf3 {[%clk 00:20:12]} {[%emt 00:00:01]} Nf6 {[%clk 00:20:10]}
{[%emt 00:00:04]} 3. e3 {[%clk 00:20:15]} {[%emt 00:00:02]} g6 {[%clk
00:20:12]} {[%emt 00:00:03]} 4. Be2 {[%clk 00:20:06]} {[%emt 00:00:14]} Bg7
{[%clk 00:20:16]} {[%emt 00:00:02]} 5. b4 {[%clk 00:20:10]} {[%emt 00:00:02]}
O-O {[%clk 00:20:10]} {[%emt 00:00:10]} 6. O-O {[%clk 00:20:03]} {[%emt
00:00:12]} Nbd7 {[%clk 00:19:03]} {[%emt 00:01:12]} 7. a4 {[%clk 00:19:55]}
{[%emt 00:00:13]} c6 {[%clk 00:18:41]} {[%emt 00:00:27]} 8. c4 {[%clk
00:19:36]} {[%emt 00:00:24]} Ne4 {[%clk 00:17:48]} {[%emt 00:00:57]} 9. Bb2
{[%clk 00:19:10]} {[%emt 00:00:31]} Ndf6 {[%clk 00:16:29]} {[%emt 00:01:24]} 10.
Nbd2 {[%clk 00:19:05]} {[%emt 00:00:10]} Bg4 {[%clk 00:16:18]} {[%emt
00:00:16]} 11. h3 {[%clk 00:18:02]} {[%emt 00:01:08]} Nxd2 {[%clk 00:14:59]}
{[%emt 00:01:25]} 12. Nxd2 {[%clk 00:18:05]} {[%emt 00:00:03]} Bxe2 {[%clk
00:14:57]} {[%emt 00:00:06]} 13. Qxe2 {[%clk 00:18:08]} {[%emt 00:00:02]} Qd6
{[%clk 00:14:53]} {[%emt 00:00:09]} 14. Ba3 {[%clk 00:17:46]} {[%emt 00:00:28]}
Qc7 {[%clk 00:14:36]} {[%emt 00:00:21]} 15. b5 {[%clk 00:17:35]} {[%emt
00:00:16]} Rfe8 {[%clk 00:13:49]} {[%emt 00:00:53]} 16. Rfc1 {[%clk 00:12:44]}
{[%emt 00:04:55]} e5 {[%clk 00:10:16]} {[%emt 00:03:37]} 17. dxe5 {[%clk
00:11:36]} {[%emt 00:01:14]} Qxe5 {[%clk 00:10:08]} {[%emt 00:00:13]} 18. Bb2
{[%clk 00:11:16]} {[%emt 00:00:25]} 0-1

[Event "MČR juniorů a juniorek v rapid šachu 2023"]
[Site "Czech Republic"]
[Date "2023.09.23"]
[Round "5.8"]
[White "Dobsa, Emma"]
[Black "Pavlis, Matej"]
[Result "1-0"]
[TimeControl "20 min + 5 sec per move"]
[WhiteFideId "23709391"]
[BlackFideId "23735767"]
[WhiteElo "1480"]
[BlackElo "1771"]

1. e4 {[%clk 00:20:09]} c5 {[%clk 00:20:07]} {[%emt 00:00:03]} 2. Nf3 {[%clk
00:20:13]} {[%emt 00:00:02]} Nc6 {[%clk 00:20:09]} {[%emt 00:00:03]} 3. d4
{[%clk 00:20:17]} cxd4 {[%clk 00:20:13]} {[%emt 00:00:02]} 4. Nxd4 {[%clk
00:20:21]} {[%emt 00:00:01]} Nf6 {[%clk 00:20:17]} 5. Nc3 {[%clk 00:20:25]} e5
{[%clk 00:20:21]} {[%emt 00:00:02]} 6. Ndb5 {[%clk 00:20:29]} d6 {[%clk
00:20:24]} {[%emt 00:00:01]} 7. Na3 {[%clk 00:20:32]} {[%emt 00:00:02]} a6
{[%clk 00:20:11]} {[%emt 00:00:18]} 8. Bg5 {[%clk 00:20:36]} {[%emt 00:00:01]}
Be7 {[%clk 00:20:14]} {[%emt 00:00:02]} 9. Nc4 {[%clk 00:20:01]} {[%emt
00:00:40]} b5 {[%clk 00:20:16]} {[%emt 00:00:04]} 10. Bxf6 {[%clk 00:19:49]}
{[%emt 00:00:16]} gxf6 {[%clk 00:20:20]} {[%emt 00:00:01]} 11. Ne3 {[%clk
00:19:47]} {[%emt 00:00:07]} Be6 {[%clk 00:18:10]} {[%emt 00:02:14]} 12. Ncd5
{[%clk 00:19:22]} {[%emt 00:00:31]} Rc8 {[%clk 00:17:32]} {[%emt 00:00:44]} 13.
Qd2 {[%clk 00:17:25]} {[%emt 00:02:01]} Nd4 {[%clk 00:07:21]} {[%emt 00:10:16]}
14. c3 {[%clk 00:17:05]} {[%emt 00:00:26]} Nc6 {[%clk 00:06:50]} {[%emt
00:00:35]} 15. a4 {[%clk 00:15:44]} {[%emt 00:01:26]} Na5 {[%clk 00:05:47]}
{[%emt 00:01:07]} 16. Qd1 {[%clk 00:14:21]} {[%emt 00:01:28]} Nc4 {[%clk
00:02:32]} {[%emt 00:03:20]} 17. axb5 {[%clk 00:12:45]} {[%emt 00:01:41]} axb5
{[%clk 00:02:33]} {[%emt 00:00:04]} 18. Bxc4 {[%clk 00:11:44]} {[%emt
00:01:06]} bxc4 {[%clk 00:02:33]} {[%emt 00:00:05]} 19. Ra7 {[%clk 00:11:43]}
{[%emt 00:00:07]} Bd7 {[%clk 00:01:49]} {[%emt 00:00:49]} 20. Nf5 {[%clk
00:11:24]} {[%emt 00:00:24]} Bf8 {[%clk 00:00:39]} {[%emt 00:01:15]} 21. Qh5
{[%clk 00:08:23]} {[%emt 00:03:05]} Be6 {[%clk 00:00:08]} {[%emt 00:00:37]} 22.
Nfe7 {[%clk 00:05:44]} {[%emt 00:02:43]} 1-0